fUST/lending_fUST_20260126
["ID","MTS","AMOUNT","RATE_DAILY","PERIOD"]
[403621210,1769423323362,500.0,6.546e-05,2]
[403621217,1769423432104,-1200.0,0.00011998,2]
[403621218,1769423432114,-204.77022221,0.00011999,2]
[403621219,1769423432123,-300.0,0.00011999,2]
[403621220,1769423432133,-276.0,0.00011999,2]
[403621221,1769423432142,-277.3465585,0.00011999,2]
[403621222,1769423432151,-187.09359835,0.00011999,2]
[403621223,1769423432160,-508.46534849,0.00011999,2]
[403621224,1769423432168,-400.79708043,0.00011999,2]
[403621225,1769423432177,-258.42786128,0.00011999,2]
[403621226,1769423432187,-87381.04685187,0.00012,5]
[403621227,1769423432198,-572.62277611,0.00012,5]
[403621231,1769423438295,-25095.5087375,0.00012,5]
[403621232,1769423438305,-1269.7088806,0.00012139,2]
[403621233,1769423438315,-300.0,0.00012239,2]
[403621234,1769423438325,-300.0,0.00012239,2]
[403621235,1769423438335,-300.0,0.00012239,2]
[403621236,1769423438344,-300.0,0.00012239,2]
[403621237,1769423438353,-300.0,0.00012239,2]
[403621238,1769423438361,-300.0,0.00012239,2]
[403621239,1769423438371,-300.0,0.00012239,2]
[403621240,1769423438380,-300.0,0.00012239,2]
[403621242,1769423438390,-300.0,0.00012239,2]
[403621245,1769423438403,-300.0,0.00012239,2]
[403621246,1769423438413,-300.0,0.00012239,2]
[403621247,1769423438422,-300.0,0.00012239,2]
[403621248,1769423438431,-300.0,0.00012239,2]
[403621249,1769423438440,-300.0,0.00012239,2]
[403621250,1769423438450,-300.0,0.00012239,2]
[403621251,1769423438460,-600.0,0.00012239,2]
[403621252,1769423438469,-238.08,0.00012329,2]
[403621253,1769423438479,-198.4,0.00012329,2]
[403621254,1769423438488,-165.34,0.00012329,2]
[403621255,1769423438497,-826.7,0.00012329,2]
[403621256,1769423438507,-1269.70888059,0.00012797,2]
[403621257,1769423438516,-2379.05820514,0.000129,2]
[403621258,1769423438525,-420.0,0.00013172,2]
[403621259,1769423438535,-123129.5559512,0.00013233,2]
[403621260,1769423438544,-500.0,0.00013273,2]
[403621261,1769423438554,-500.0,0.00013273,2]
[403621262,1769423438563,-500.0,0.00013273,2]
[403621263,1769423438573,-500.0,0.00013273,2]
[403621264,1769423438583,-500.0,0.00013273,2]
[403621265,1769423438592,-1041.66666667,0.00013277,2]
[403621266,1769423438602,-1269.70888059,0.00013456,2]
[403621267,1769423438612,-720.0,0.00013463,2]
[403621268,1769423438621,-583.499,0.00013635,2]
[403621269,1769423438631,-418.0,0.00013635,2]
[403621270,1769423438642,-179.0,0.00013635,2]
[403621271,1769423438651,-300.0,0.00013673,2]
[403621272,1769423438664,-159.67387,0.00013699,2]
[403621273,1769423438675,-500.0,0.00013699,2]
[403621274,1769423438684,-228.02056982,0.00013699,2]
[403621275,1769423438694,-500.0,0.00013699,2]
[403621276,1769423438705,-171.30774651,0.00013699,2]
[403621277,1769423438715,-1000.0,0.00013821,2]
[403621278,1769423438725,-1000.0,0.00013821,2]
[403621279,1769423438735,-1000.0,0.00013821,2]
[403621280,1769423438745,-1000.0,0.00013821,2]
[403621281,1769423438755,-1000.0,0.00013821,2]
[403621282,1769423438765,-2379.05820509,0.00013867,2]
[403621283,1769423438774,-38000.0,0.00013972,3]
[403621284,1769423438784,-502.89555556,0.00013973,2]
[403621285,1769423438794,-38000.0,0.00013981,3]
[403621286,1769423438804,-100000.0,0.0001399,2]
[403621287,1769423438815,-241.62886221,0.00013999,2]
[403621288,1769423438824,-1269.70888059,0.00014114,2]
[403621289,1769423438834,-600.0,0.00014221,2]
[403621290,1769423438844,-1000.0,0.00014247,2]
[403621291,1769423438854,-209.40437684,0.00014353,2]
[403621292,1769423438865,-217.15233878,0.00014353,2]
[403621293,1769423438875,-225.18697532,0.00014353,2]
[403621294,1769423438885,-233.51889341,0.00014353,2]
[403621295,1769423438896,-283.61912344,0.00014353,2]
[403621296,1769423438906,-1500.0,0.00014368,2]
[403621297,1769423438916,-1500.0,0.00014368,2]
[403621298,1769423438926,-1500.0,0.00014368,2]
[403621299,1769423438937,-943.77363094,0.00014368,2]
[403621300,1769423438948,-1500.0,0.00014368,2]
[403621301,1769423438958,-168.0,0.00014444,2]
[403621302,1769423438968,-167.0,0.0001446,2]
[403621303,1769423438978,-168.0,0.00014507,2]
[403621304,1769423438987,-179.9820018,0.00014554,2]
[403621305,1769423438998,-168.0,0.00014554,2]
[403621306,1769423439008,-900.0,0.00014768,2]
[403621307,1769423439018,-1269.70888059,0.00014772,2]
[403621308,1769423439029,-1500.0,0.00014795,2]
[403621309,1769423439039,-864.0,0.00014809,2]
[403621310,1769423439049,-232214.63231373,0.00014816,2]
[403621356,1769423440399,-35156.6011124,0.00014816,2]
[403621767,1769423444715,-12644.74011672,0.00014816,2]
[403621769,1769423444727,-608.42003136,0.00014816,2]
[403621815,1769423445073,-1262.70776101,0.00014816,2]
[403621817,1769423445084,-309.73,0.00014816,2]
[403621894,1769423446410,-300.0,0.00014816,2]
[403621895,1769423446463,-871.85190565,0.00014816,2]
[403621896,1769423446474,-2769.49731269,0.00014816,2]
[403621897,1769423446486,-690.80750882,0.00014816,2]
[403621898,1769423446496,-10931.04221276,0.00014816,2]
[403621901,1769423537157,1000.0,0.00030136,120]
[403621902,1769423579654,500.0,0.00034699,120]
[403621903,1769423665335,3000.0,0.00034696,120]
[403621904,1769423867383,500.0,0.0003,120]
[403621905,1769423872411,503.5404854,0.0003,120]
[403621906,1769423877472,500.0,0.00034696,120]
[403621907,1769424102105,500.0,0.0003,120]
[403621908,1769424110443,500.0,0.0003,120]
[403621909,1769424110662,1000.0,0.0003,120]
[403621911,1769424153782,1000.0,0.00030136,120]
[403621912,1769424177975,500.0,0.00034693,120]
[403621913,1769424330697,197.0,0.00029608,120]
[403621914,1769424478033,500.0,0.00034693,120]
[403621915,1769424511119,2000.00000008,0.0003,120]
[403622012,1769424638351,-300.0,0.00010933,2]
[403622014,1769424638361,-200.67481777,0.00010933,2]
[403622015,1769424638372,-15693.7065266,0.00010934,2]
[403622016,1769424638381,-678.5269253,0.00011053,2]
[403622017,1769424638391,-9287.30617683,0.00011151,2]
[403622018,1769424638401,-300.0,0.00011151,2]
[403622019,1769424638410,-300.0,0.00011151,2]
[403622020,1769424638420,-300.0,0.00011151,2]
[403622021,1769424638429,-300.0,0.00011151,2]
[403622022,1769424638439,-300.0,0.00011151,2]
[403622023,1769424638448,-300.0,0.00011151,2]
[403622024,1769424638458,-300.0,0.00011151,2]
[403622025,1769424638468,-300.0,0.00011151,2]
[403622026,1769424638477,-300.0,0.00011151,2]
[403622027,1769424638486,-300.0,0.00011151,2]
[403622028,1769424638495,-300.0,0.00011151,2]
[403622029,1769424638505,-300.0,0.00011151,2]
[403622030,1769424638514,-300.0,0.00011151,2]
[403622031,1769424638524,-300.0,0.00011151,2]
[403622032,1769424638533,-300.0,0.00011151,2]
[403622033,1769424638543,-600.0,0.00011373,2]
[403622034,1769424638552,-1175.22477003,0.00011898,2]
[403622035,1769424638561,-194.14259095,0.00011899,2]
[403622036,1769424638570,-273588.33807477,0.000119,2]
[403622037,1769424638584,-1269.7088806,0.00011914,2]
[403622038,1769424638595,-287.0,0.00012014,2]
[403622039,1769424638604,-5054.64026073,0.00012141,2]
[403622040,1769424638614,-238.08,0.00012329,2]
[403622041,1769424638623,-198.4,0.00012329,2]
[403622042,1769424638634,-165.34,0.00012329,2]
[403622043,1769424638644,-826.7,0.00012329,2]
[403622044,1769424638653,-720.0,0.0001251,2]
[403622045,1769424638663,-1269.70888059,0.00012661,2]
[403622046,1769424638673,-2379.05820514,0.000129,2]
[403622047,1769424638682,-236.79628496,0.00012933,2]
[403622048,1769424638691,-500.0,0.00013273,2]
[403622049,1769424638700,-500.0,0.00013273,2]
[403622050,1769424638709,-500.0,0.00013273,2]
[403622051,1769424638719,-500.0,0.00013273,2]
[403622052,1769424638728,-500.0,0.00013273,2]
[403622053,1769424638738,-1041.66666667,0.00013302,2]
[403622054,1769424638747,-2379.05820509,0.00013315,2]
[403622055,1769424638756,-1269.70888059,0.00013407,2]
[403622056,1769424638765,-377.90212361,0.00013447,2]
[403622057,1769424638774,-680.2238225,0.00013447,2]
[403622058,1769424638784,-1209.28679556,0.00013447,2]
[403622059,1769424638793,-1889.51061805,0.00013447,2]
[403622060,1769424638803,-2718.17439471,0.00013447,2]
[403622061,1769424638812,-300.0,0.00013673,2]
[403622062,1769424638821,-500.0,0.00013673,2]
[403622063,1769424638831,-228.02056982,0.00013699,2]
[403622064,1769424638842,-300.01916849,0.00013699,2]
[403622065,1769424638851,-500.0,0.00013699,2]
[403622066,1769424638861,-171.30774651,0.00013699,2]
[403622067,1769424638872,-864.0,0.00013761,2]
[403622068,1769424638881,-1000.0,0.00013821,2]
[403622069,1769424638891,-1000.0,0.00013821,2]
[403622070,1769424638900,-1000.0,0.00013821,2]
[403622071,1769424638910,-1000.0,0.00013821,2]
[403622072,1769424638920,-1000.0,0.00013821,2]
[403622073,1769424638929,-2150.0,0.00013843,2]
[403622074,1769424638939,-150.0,0.00013843,2]
[403622075,1769424638948,-1888.1937545,0.00013849,2]
[403622076,1769424638958,-502.89555556,0.00013947,2]
[403622077,1769424638968,-190.29,0.00013973,2]
[403622078,1769424638977,-1894.17470157,0.00013981,3]
[403622079,1769424638991,-38000.0,0.00013981,3]
[403622080,1769424639001,-100000.0,0.0001399,2]
[403622081,1769424639010,-38000.0,0.0001399,3]
[403622082,1769424639019,-444.04,0.00014073,2]
[403622083,1769424639029,-1269.70888059,0.00014154,2]
[403622084,1769424639038,-430.43033186,0.00014155,2]
[403622085,1769424639047,-774.77459736,0.00014155,2]
[403622086,1769424639056,-1377.37706197,0.00014155,2]
[403622087,1769424639068,-2152.15165932,0.00014155,2]
[403622088,1769424639079,-3099.09838943,0.00014155,2]
[403622089,1769424639088,-4213.99903502,0.00014155,2]
[403622090,1769424639097,-600.0,0.00014221,2]
[403622091,1769424639106,-1000.0,0.00014247,2]
[403622092,1769424639115,-1500.0,0.00014368,2]
[403622093,1769424639124,-943.77363094,0.00014368,2]
[403622094,1769424639133,-1500.0,0.00014368,2]
[403622095,1769424639142,-1500.0,0.00014368,2]
[403622096,1769424639152,-1500.0,0.00014368,2]
[403622097,1769424639162,-3207.8109427,0.00014492,2]
[403622098,1769424639172,-179.9640072,0.00014554,2]
[403622099,1769424639181,-209.40437684,0.00014554,2]
[403622100,1769424639192,-217.15233878,0.00014554,2]
[403622101,1769424639202,-225.18697532,0.00014554,2]
[403622102,1769424639211,-233.51889341,0.00014554,2]
[403622103,1769424639221,-283.61912344,0.00014554,2]
[403622104,1769424639230,-900.0,0.00014768,2]
[403622105,1769424639239,-1500.0,0.00014795,2]
[403622106,1769424639249,-168.0,0.00014872,2]
[403622107,1769424639259,-595.81313505,0.000149,2]
[403622108,1769424639267,-194.86450556,0.000149,2]
[403622109,1769424639276,-350.40535391,0.000149,2]
[403622110,1769424639285,-1269.70888059,0.000149,2]
[403622111,1769424639295,-2000.0,0.00014916,2]
[403622112,1769424639304,-2000.0,0.00014916,2]
[403622113,1769424639314,-2000.0,0.00014916,2]
[403622114,1769424639324,-2000.0,0.00014916,2]
[403622115,1769424639334,-272.91775216,0.00014933,2]
[403622116,1769424639346,-1020.44694379,0.00015,2]
[403622117,1769424639356,-580.47140307,0.00015,2]
[403622118,1769424639366,-41383.51381111,0.00015,2]
[403622119,1769424639397,-3768.83729105,0.00015,2]
[403622120,1769424639408,-2435.17447835,0.00015,2]
[403622121,1769424639420,-4464.86730799,0.00015,2]
[403622122,1769424639431,-1374.66687349,0.00015,2]
[403622903,1769424751276,1000.0,0.00030136,120]
[403622904,1769424778985,500.0,0.00034693,120]
[403622905,1769424915467,680.41,0.00034663,120]
[403622906,1769424916104,680.41,0.00034663,120]
[403622907,1769424916531,680.41,0.00034663,120]
[403622908,1769424916572,680.41,0.00034663,120]
[403622909,1769424916820,680.41,0.00034663,120]
[403622910,1769424917075,680.41,0.00034663,120]
[403622911,1769424917435,680.41,0.00034663,120]
[403622912,1769424917687,680.41,0.00034663,120]
[403622913,1769424917924,680.41,0.00034663,120]
[403622914,1769424918161,680.41,0.00034663,120]
[403622915,1769424918395,680.41,0.00034663,120]
[403622916,1769424918639,680.41,0.00034663,120]
[403622917,1769424918872,680.41,0.00034663,120]
[403622918,1769424919113,680.41,0.00034663,120]
[403622919,1769424919346,680.41,0.00034663,120]
[403622920,1769424919576,680.41,0.00034663,120]
[403622921,1769424919816,680.41,0.00034663,120]
[403622922,1769424920064,680.41,0.00034663,120]
[403622923,1769424920328,680.41,0.00034663,120]
[403622924,1769424920565,680.41,0.00034663,120]
[403622925,1769424921744,680.41,0.00034663,120]
[403622926,1769424922036,680.41,0.00034663,120]
[403622927,1769424922261,680.41,0.00034663,120]
[403622928,1769424922492,680.532066,0.00034663,120]
[403622929,1769425077270,500.0,0.00034663,120]
[403622930,1769425096959,-197.73,0.0001083,2]
[403622931,1769425096980,-200.19306207,0.00010915,2]
[403622932,1769425097000,-393.04,0.00011,2]
[403622933,1769425097020,-194.14259095,0.0001105,2]
[403622934,1769425097040,-14.89434698,0.0001105,2]
[403622935,1769425098318,-1000.0,0.0001105,2]
[403622936,1769425098598,-185.10565302,0.0001105,2]
[403622937,1769425098618,-300.0,0.0001105,2]
[403622938,1769425098641,-514.89434698,0.00011051,2]
[403622939,1769425098930,-1000.0,0.00011051,2]
[403622940,1769425099276,-1000.0,0.00011051,2]
[403622941,1769425099929,-1000.0,0.00011051,2]
[403622942,1769425100109,-1000.0,0.00011051,2]
[403622943,1769425100269,-1000.0,0.00011051,2]
[403622944,1769425100641,-1000.0,0.00011051,2]
[403622945,1769425100940,-1000.0,0.00011051,2]
[403622946,1769425101297,-1000.0,0.00011051,2]
[403622947,1769425101631,-1000.0,0.00011051,2]
[403622948,1769425101975,-1000.0,0.00011051,2]
[403622949,1769425102322,-1000.0,0.00011051,2]
[403622950,1769425102685,-1000.0,0.00011051,2]
[403622951,1769425104204,-1000.0,0.00011051,2]
[403622952,1769425104988,-1000.0,0.00011051,2]
[403622953,1769425108969,-500.0,0.00011051,2]
[403622954,1769425236529,-3714.67038078,0.00010136,2]
[403622955,1769425349082,1000.0,0.00030136,120]
[403622956,1769425377105,500.0,0.00034694,120]
[403622957,1769425457986,3000.0,0.00034696,120]
[403622958,1769425677364,500.0,0.00034696,120]
[403622959,1769425789537,-200.0,0.00010063,2]
[403622960,1769425803514,-93.44993338,0.00010063,2]
[403622961,1769425803534,-150.0,0.00010063,2]
[403622962,1769425803554,-256.55006662,0.000101,2]
[403623008,1769425832664,-561.0,0.00010063,2]
[403623009,1769425832674,-318.03,0.000101,2]
[403623010,1769425832714,-983.63739194,0.000101,2]
[403623011,1769425832723,-300.0,0.00010134,2]
[403623012,1769425832732,-300.0,0.00010134,2]
[403623013,1769425832742,-1200.0,0.00010134,2]
[403623014,1769425832751,-207.79174237,0.00010134,2]
[403623015,1769425832760,-535.38934593,0.00010135,2]
[403623017,1769425832770,-500.0,0.00010135,2]
[403623019,1769425832785,-163.68653676,0.00010135,2]
[403623021,1769425832806,-500.0,0.00010135,2]
[403623022,1769425832815,-500.0,0.00010135,2]
[403623023,1769425832825,-500.0,0.00010135,2]
[403623024,1769425832835,-272.09310762,0.00010135,2]
[403623025,1769425832846,-227.90689238,0.00010135,2]
[403623026,1769425832855,-306.73691486,0.00010135,2]
[403623027,1769425832866,-193.26308514,0.00010135,2]
[403623028,1769425832876,-500.0,0.00010135,2]
[403623029,1769425832885,-25.59976116,0.00010135,2]
[403623030,1769425832896,-474.40023884,0.00010135,2]
[403623031,1769425832905,-500.0,0.00010135,2]
[403623032,1769425832914,-500.0,0.00010135,2]
[403623033,1769425832923,-569.44162549,0.00010135,2]
[403623034,1769425832938,-500.0,0.00010135,2]
[403623035,1769425832952,-500.0,0.00010135,2]
[403623036,1769425832970,-500.0,0.00010135,2]
[403623037,1769425832984,-500.0,0.00010135,2]
[403623038,1769425832994,-500.0,0.00010135,2]
[403623039,1769425833003,-500.0,0.00010135,2]
[403623040,1769425833013,-500.0,0.00010135,2]
[403623041,1769425833022,-500.0,0.00010135,2]
[403623042,1769425833031,-500.0,0.00010135,2]
[403623043,1769425833040,-505.97701634,0.00010135,2]
[403623044,1769425833049,-500.0,0.00010135,2]
[403623045,1769425833059,-500.0,0.00010135,2]
[403623046,1769425833068,-500.0,0.00010135,2]
[403623047,1769425833078,-500.0,0.00010135,2]
[403623048,1769425833087,-500.0,0.00010135,2]
[403623049,1769425833096,-500.0,0.00010135,2]
[403623050,1769425833106,-500.0,0.00010135,2]
[403623051,1769425833115,-184.16236653,0.00010135,2]
[403623083,1769425838666,-315.83763347,0.00010135,2]
[403623085,1769425838675,-246.45635152,0.00010135,2]
[403623087,1769425838685,-593.26567633,0.00010135,2]
[403623089,1769425838695,-500.0,0.00010135,2]
[403623090,1769425838704,-500.0,0.00010135,2]
[403623091,1769425838714,-168.5693228,0.00010135,2]
[403623092,1769425838723,-500.0,0.00010135,2]
[403623094,1769425838733,-500.0,0.00010135,2]
[403623095,1769425838742,-186.36621046,0.00010135,2]
[403623097,1769425838752,-206.85826153,0.00010135,2]
[403623098,1769425838763,-2617.29599802,0.00010135,2]
[403623099,1769425838774,-25369.84754101,0.00010135,2]
[403623100,1769425838783,-119414.88557042,0.00010136,2]
[403623101,1769425838792,-150.0,0.000102,2]
[403623102,1769425838801,-600.0,0.00010336,2]
[403623103,1769425838811,-1558.21745853,0.00010337,2]
[403623104,1769425838821,-200.0,0.00010337,2]
[403623105,1769425838829,-500.0,0.00010337,2]
[403623106,1769425838839,-300.0,0.00010337,2]
[403623107,1769425838848,-300.0,0.00010337,2]
[403623108,1769425838858,-300.0,0.00010337,2]
[403623109,1769425838868,-300.0,0.00010337,2]
[403623110,1769425838878,-300.0,0.00010337,2]
[403623111,1769425838888,-300.0,0.00010337,2]
[403623112,1769425838898,-300.0,0.00010337,2]
[403623113,1769425838908,-300.0,0.00010337,2]
[403623114,1769425838918,-300.0,0.00010337,2]
[403623115,1769425838928,-300.0,0.00010337,2]
[403623116,1769425838938,-300.0,0.00010337,2]
[403623117,1769425838948,-300.0,0.00010337,2]
[403623118,1769425838958,-300.0,0.00010337,2]
[403623119,1769425838967,-300.0,0.00010337,2]
[403623120,1769425838976,-300.0,0.00010337,2]
[403623121,1769425838986,-1558.21745853,0.00010573,2]
[403623122,1769425838995,-502.89555556,0.00010611,2]
[403623123,1769425839004,-1558.21745853,0.0001081,2]
[403623124,1769425839014,-207.87778273,0.00010949,2]
[403623125,1769425839023,-1558.21745853,0.00011046,2]
[403623126,1769425839032,-420.0,0.00011146,2]
[403623127,1769425839042,-971.0,0.00011147,2]
[403623128,1769425839052,-720.0,0.0001137,2]
[403623129,1769425839061,-627.85,0.000116,2]
[403623130,1769425839071,-58174.48767272,0.00012,2]
[403623131,1769425839260,-444.04,0.00012022,2]
[403623132,1769425839270,-190.29,0.00012022,2]
[403623133,1769425839280,-6951.63727877,0.00012122,2]
[403623134,1769425839289,-245.194256,0.00012134,2]
[403623135,1769425839299,-587.0,0.00012259,2]
[403623136,1769425839308,-221.75860918,0.00012318,2]
[403623137,1769425839318,-238.08,0.00012329,2]
[403623138,1769425839328,-198.4,0.00012329,2]
[403623139,1769425839339,-165.34,0.00012329,2]
[403623140,1769425839349,-826.7,0.00012329,2]
[403623141,1769425839358,-9660.27372543,0.00012407,2]
[403623142,1769425839368,-453344.74037051,0.000125,2]
[403623143,1769425839391,-813.30821599,0.000125,2]
[403623144,1769425839405,-504.03129315,0.000125,2]
[403623185,1769425840712,-471.88398881,0.000125,2]
[403623187,1769425840724,-13339.19759875,0.000125,2]
[403623219,1769425841006,-388.07730255,0.000125,2]
[403623495,1769425843766,-1345.18676271,0.000125,2]
[403623502,1769425843818,-477.26040614,0.000125,2]
[403623504,1769425843830,-7278.67149583,0.000125,2]
[403624428,1769425941103,1000.0,0.00030136,120]
[403624429,1769425979873,500.0,0.000347,120]
[403624430,1769426140453,515.34464907,0.00034662,120]
[403624432,1769426538098,1000.0,0.00030136,120]
[403624433,1769426755075,653.96,0.00034702,120]
[403624434,1769426881822,151.0,6.639e-05,2]
[403624435,1769426914875,151.0,6.639e-05,2]
[403624487,1769427031838,-207.87778273,0.00010848,2]
[403624489,1769427031859,-95.53712269,0.00010848,20]
[403624493,1769427031871,-519.37338129,0.00010848,20]
[403624495,1769427031880,-572.0,0.00010848,2]
[403624497,1769427031890,-13621.81412782,0.00010886,2]
[403624499,1769427031902,-1781.20518151,0.00010886,2]
[403624547,1769427037808,-226.49579954,0.00010885,2]
[403624549,1769427037819,-192382.40940133,0.00010886,2]
[403624551,1769427037843,-79476.43573827,0.00010886,2]
[403624553,1769427037857,-212.3688603,0.00010898,2]
[403624555,1769427037869,-241.72,0.000109,2]
[403624557,1769427037880,-678.5269253,0.00010948,2]
[403624559,1769427037889,-300.0,0.00010985,2]
[403624561,1769427037901,-194.0,0.00010985,2]
[403624563,1769427037911,-1200.0,0.00010985,2]
[403624565,1769427037920,-217.0,0.00010985,2]
[403624567,1769427037930,-6038.53877195,0.00010986,2]
[403624569,1769427037940,-60433.3001931,0.00010987,2]
[403624571,1769427037950,-311.64349173,0.00011106,2]
[403624573,1769427037959,-300.0,0.00011206,2]
[403624575,1769427037970,-300.0,0.00011206,2]
[403624577,1769427037979,-300.0,0.00011206,2]
[403624579,1769427037990,-300.0,0.00011206,2]
[403624581,1769427038002,-300.0,0.00011206,2]
[403624583,1769427038012,-300.0,0.00011206,2]
[403624585,1769427038024,-300.0,0.00011206,2]
[403624587,1769427038034,-300.0,0.00011206,2]
[403624589,1769427038044,-300.0,0.00011206,2]
[403624591,1769427038057,-300.0,0.00011206,2]
[403624593,1769427038068,-300.0,0.00011206,2]
[403624595,1769427038079,-300.0,0.00011206,2]
[403624597,1769427038089,-300.0,0.00011206,2]
[403624599,1769427038100,-300.0,0.00011206,2]
[403624601,1769427038111,-300.0,0.00011206,2]
[403624603,1769427038121,-600.0,0.00011206,2]
[403624605,1769427038130,-311.6434917,0.0001143,2]
[403624606,1769427038140,-3448.08043368,0.000115,2]
[403624608,1769427038153,-386.13,0.000115,2]
[403624611,1769427038175,-1175.22477003,0.00011568,2]
[403624613,1769427038197,-4685.06794634,0.0001157,2]
[403624615,1769427038214,-311.6434917,0.00011753,2]
[403624617,1769427038226,-25095.5087375,0.00012,5]
[403624619,1769427038237,-420.0,0.00012071,2]
[403624621,1769427038248,-311.6434917,0.00012077,2]
[403624623,1769427038259,-971.0,0.00012083,2]
[403624625,1769427038270,-720.0,0.00012326,2]
[403624627,1769427038281,-238.08,0.00012329,2]
[403624629,1769427038291,-198.4,0.00012329,2]
[403624631,1769427038303,-165.34,0.00012329,2]
[403624633,1769427038313,-826.7,0.00012329,2]
[403624635,1769427038323,-875.466872,0.00012391,2]
[403624637,1769427038333,-3055.6777079,0.00012391,2]
[403624639,1769427038343,-227.265,0.00012391,2]
[403624641,1769427038353,-311.6434917,0.000124,2]
[403624643,1769427038363,-337614.83773897,0.000125,2]
[403624716,1769427039893,-21751.69778816,0.000125,2]
[403624718,1769427039905,-30455.45815628,0.000125,2]
[403624724,1769427039951,-5269.74034417,0.000125,2]
[403625032,1769427043137,-52217.332929,0.000125,2]
[403625034,1769427043148,-13098.34869828,0.000125,2]
[403625321,1769427046085,-1075.6164,0.000125,2]
[403625323,1769427046097,-1075.6164,0.000125,2]
[403625444,1769427052605,-62.43598442,0.00010885,2]
[403625445,1769427052627,-437.56401558,0.00010885,2]
[403625446,1769427163781,1271.0766598,0.00034705,120]
[403625447,1769427276381,3000.0,0.00034664,120]
[403625451,1769427615954,919.98314,0.0003469,120]
[403625452,1769427682246,200.0,0.0003469,120]
[403625453,1769427682482,200.0,0.0003469,120]
[403625454,1769427682714,200.0,0.0003469,120]
[403625456,1769427926387,151.0,0.00030137,120]
[403625465,1769428231825,-150.0,0.00010611,2]
[403625466,1769428231835,-150.0,0.00010611,2]
[403625467,1769428231843,-225.06757274,0.00010611,2]
[403625468,1769428231854,-343.93242726,0.00010611,2]
[403625469,1769428231863,-212.3688603,0.00010628,2]
[403625470,1769428231872,-150.0,0.00010748,2]
[403625471,1769428231881,-150.0,0.00010748,2]
[403625472,1769428231890,-300.0,0.00010784,2]
[403625473,1769428231899,-1200.0,0.00010784,2]
[403625474,1769428231908,-194.0,0.00010784,2]
[403625475,1769428231916,-10089.05814368,0.00010785,2]
[403625476,1769428231959,-356.90616913,0.00010785,2]
[403625478,1769428231970,-11706.01397739,0.00010785,2]
[403625480,1769428231980,-1392.66568301,0.00010785,2]
[403625530,1769428237994,-1175.67261228,0.00010785,2]
[403625531,1769428238006,-968.75395028,0.00010785,2]
[403625532,1769428238017,-980.33551009,0.00010785,2]
[403625533,1769428238048,-75695.40941505,0.00010785,2]
[403625534,1769428238058,-3116.43491706,0.000108,2]
[403625535,1769428238067,-217.0,0.00010883,2]
[403625536,1769428238076,-6038.53877195,0.00010883,2]
[403625537,1769428238085,-502.89555556,0.00010885,2]
[403625538,1769428238095,-150.0,0.00010885,2]
[403625539,1769428238104,-200.0,0.00010885,2]
[403625540,1769428238114,-227.265,0.00010885,2]
[403625541,1769428238123,-500.0,0.00010885,2]
[403625542,1769428238133,-500.0,0.00010885,2]
[403625543,1769428238143,-500.0,0.00010885,2]
[403625544,1769428238155,-500.0,0.00010885,2]
[403625545,1769428238164,-421.7043932,0.00010885,2]
[403625546,1769428238174,-500.0,0.00010885,2]
[403625547,1769428238183,-500.0,0.00010885,2]
[403625548,1769428238194,-500.0,0.00010885,2]
[403625549,1769428238204,-500.0,0.00010885,2]
[403625550,1769428238213,-500.0,0.00010885,2]